bitfinex/quotes_SOLUSD_20250704
["timestamp","ask_amount","ask_price","bid_price","bid_amount"]
[1751644930295,7.48855885,146.91,146.88,12.8644793]
[1751644930663,7.48855885,146.91,146.89,12.8644793]
[1751644930995,7.48855885,146.91,146.85,6.80966973]
[1751644931164,0.68157033,146.91,146.89,12.8644793]
[1751644931568,87.7,146.93,146.9,12.8644793]
[1751644931877,4.22517033,146.94,146.92,12.8644793]
[1751644932261,11.03067948,146.94,146.89,6.80755951]
[1751644932666,4.22517033,146.94,146.93,12.8644793]
[1751644932862,28.02920066,146.95,146.93,12.8644793]
[1751644933288,21.22397033,146.95,146.93,12.8644793]
[1751644934796,28.02901557,146.95,146.93,12.8644793]
[1751644935789,28.02901557,146.95,146.9,6.80709391]
[1751644936089,28.02901557,146.95,146.93,12.8644793]
[1751644937666,0.68157033,146.95,146.94,12.8644793]
[1751644937871,0.2,146.96,146.94,12.8644793]
[1751644938079,0.2,146.96,146.95,12.8644793]
[1751644940483,7.00457267,146.96,146.92,6.80623877]
[1751644940789,0.2,146.96,146.94,12.8644793]
[1751644941994,7.00460487,146.96,146.94,12.8644793]
[1751644942191,13.54604963,146.95,146.85,20.50112367]
[1751644942395,13.54604963,146.95,146.88,42.4784299]
[1751644942396,3.3069,146.94,146.88,42.4784299]
[1751644942594,95.3861752,146.96,146.88,55.3429092]
[1751644942985,12.8644793,146.95,146.91,12.8644793]
[1751644943187,12.8644793,146.95,146.88,25.45773274]
[1751644943188,12.8644793,146.93,146.86,18.64964886]
[1751644943390,5.70985407,146.94,146.89,12.8644793]
[1751644943691,5.70985407,146.94,146.88,12.8644793]
[1751644943692,12.8644793,146.92,146.88,12.8644793]
[1751644943895,5.70985407,146.92,146.89,12.8644793]
[1751644944092,94.50605499,146.93,146.9,12.8644793]
[1751644944286,94.50605499,146.93,146.88,6.80803257]
[1751644944483,87.7,146.93,146.88,6.80803257]
[1751644944687,94.50597166,146.93,146.91,12.8644793]
[1751644944897,94.50597166,146.93,146.9,12.8644793]
[1751644945801,94.50597166,146.93,146.86,18.64964886]
[1751644945973,3.4548,146.91,146.85,12.8644793]
[1751644946301,3.4548,146.91,146.84,26.0]
[1751644946302,17.00084963,146.91,146.86,12.8644793]
[1751644946480,12.8644793,146.89,146.84,26.0]
[1751644946691,4.13637033,146.91,146.83,18.64964886]
[1751644946692,12.8644793,146.9,146.83,18.64964886]
[1751644946994,12.8644793,146.89,146.83,25.46020745]
[1751644947194,12.8644793,146.89,146.82,32.81091411]
[1751644947498,12.8644793,146.89,146.79,0.1]
[1751644947499,0.68157033,146.88,146.84,12.8644793]
[1751644947704,0.68157033,146.88,146.79,12.9644793]
[1751644947705,6.80874242,146.87,146.83,26.0]
[1751644947902,0.68157033,146.86,146.79,6.91243637]
[1751644948482,20.47648712,146.88,146.8,18.64964886]
[1751644948676,12.9866,146.88,146.86,12.8644793]
[1751644948911,12.9866,146.88,146.83,26.0]
[1751644949324,20.47645701,146.88,146.82,26.0]
[1751644949701,20.47645701,146.88,146.85,12.8644793]
[1751644950002,33.34093631,146.88,146.81,32.81141525]
[1751644950173,20.47645701,146.88,146.81,32.81141525]
[1751644950779,3.2746,146.87,146.79,0.1]
[1751644951003,26.0,146.84,146.79,0.1]
[1751644951184,0.68157033,146.83,146.79,6.91230762]
[1751644951383,0.68157033,146.86,146.79,32.91240656]
[1751644951789,3.95617033,146.87,146.8,18.64964886]
[1751644951998,3.2746,146.87,146.8,18.64964886]
[1751644952983,0.68157033,146.86,146.81,12.8644793]
[1751644953184,3.2746,146.87,146.8,18.64964886]
[1751644953610,3.2746,146.87,146.85,12.8644793]
[1751644953787,3.2746,146.87,146.86,12.8644793]
[1751644954305,10.08340928,146.87,146.79,0.1]
[1751644954520,0.68157033,146.86,146.79,0.1]
[1751644955286,0.68157033,146.86,146.82,12.8644793]
[1751644955489,3.95617033,146.87,146.79,6.91235656]
[1751644955805,10.76514776,146.87,146.83,12.8644793]
[1751644956008,3.95617033,146.87,146.85,12.8644793]
[1751644956180,3.2746,146.87,146.85,12.8644793]
[1751644956380,3.2746,146.87,146.8,25.46129359]
[1751644956608,3.2746,146.87,146.86,12.8644793]
[1751644957105,3.2746,146.87,146.85,12.8644793]
[1751644957402,3.2746,146.87,146.86,12.8644793]
[1751644957703,3.2746,146.87,146.85,12.8644793]
[1751644958105,10.08351223,146.87,146.85,12.8644793]
[1751644958285,38.8644793,146.86,146.79,26.1]
[1751644958481,12.8644793,146.84,146.8,12.8644793]
[1751644958704,12.8644793,146.84,146.79,0.1]
[1751644958705,0.68157033,146.83,146.79,0.1]
[1751644958881,0.68157033,146.83,146.79,12.9644793]
[1751644959080,0.68157033,146.83,146.8,12.8644793]
[1751644960607,7.49087683,146.86,146.82,12.8644793]
[1751644960804,7.49087683,146.86,146.83,12.8644793]
[1751644961103,12.8644793,146.85,146.81,12.8644793]
[1751644961287,0.68157033,146.84,146.81,12.8644793]
[1751644961489,0.68157033,146.85,146.81,12.8644793]
[1751644961687,0.68157033,146.85,146.79,6.91243074]
[1751644961903,0.68157033,146.85,146.82,12.8644793]
[1751644962686,7.49133681,146.85,146.79,0.1]
[1751644962906,7.49133681,146.85,146.82,12.8644793]
[1751644963509,7.49133681,146.85,146.79,0.1]
[1751644963690,20.35581611,146.85,146.79,0.1]
[1751644963892,20.35581611,146.85,146.81,12.8644793]
[1751644964098,7.49133681,146.85,146.81,12.8644793]
[1751644964298,7.49133681,146.85,146.79,6.9124156]
[1751644964594,7.49133681,146.85,146.81,12.8644793]
[1751644964799,7.49133681,146.85,146.82,12.8644793]
[1751644965008,20.35581611,146.85,146.81,12.8644793]
[1751644965300,7.49133681,146.85,146.79,0.1]
[1751644965498,7.49133681,146.85,146.82,12.8644793]
[1751644965898,20.35581611,146.85,146.81,12.8644793]
[1751644966095,7.49133681,146.85,146.79,0.1]
[1751644966610,7.49133681,146.85,146.81,12.8644793]
[1751644966611,20.35581611,146.85,146.81,12.8644793]
[1751644966920,7.49133681,146.85,146.81,12.8644793]
[1751644967219,20.35581611,146.85,146.81,12.8644793]
[1751644967425,20.35581611,146.85,146.79,0.1]
[1751644967598,20.35581611,146.85,146.81,12.8644793]
[1751644968421,12.8644793,146.83,146.79,12.9644793]
[1751644968715,3.5054,146.81,146.79,0.1]
[1751644969293,3.5054,146.81,146.79,12.9644793]
[1751644969515,3.5054,146.81,146.79,0.1]
[1751644969687,3.5054,146.81,146.79,12.9644793]
[1751644970506,3.5054,146.81,146.79,0.1]
[1751644970816,12.4273,146.83,146.8,12.8644793]
[1751644971005,19.23791696,146.83,146.82,12.8644793]
[1751644971219,19.23791696,146.83,146.81,12.8644793]
[1751644971518,7.49174605,146.84,146.79,6.91228173]
[1751644971696,7.49174605,146.84,146.81,12.8644793]
[1751644972115,12.8644793,146.82,146.79,0.1]
[1751644972414,36.2747684,146.8,146.79,0.1]
[1751644972615,26.0,146.78,146.77,0.1]
[1751644972789,39.54604963,146.78,146.77,0.1]
[1751644972985,58.19569849,146.78,146.77,0.1]
[1751644974313,65.00861578,146.78,146.77,0.1]
[1751644974504,46.35896692,146.78,146.77,0.1]
[1751644975495,33.49448762,146.78,146.75,0.1]
[1751644975824,26.68157033,146.78,146.76,12.8644793]
[1751644976129,0.68157033,146.79,146.75,6.91430658]
[1751644976300,17.27987033,146.8,146.75,6.91415769]
[1751644976623,17.27987033,146.8,146.78,12.8644793]
[1751644977133,0.68157033,146.81,146.76,6.81384573]
[1751644977321,0.68157033,146.82,146.76,6.81384573]
[1751644977625,0.68157033,146.82,146.8,12.8644793]
[1751644977820,0.68157033,146.82,146.78,12.8644793]
[1751644978031,13.54604963,146.82,146.78,12.8644793]
[1751644978393,0.68157033,146.82,146.79,12.8644793]
[1751644978713,7.49300939,146.82,146.79,12.8644793]
[1751644979020,12.8644793,146.81,146.77,12.8644793]
[1751644979221,12.8644793,146.79,146.75,12.9644793]
[1751644979408,0.68157033,146.78,146.75,0.1]
[1751644979716,0.68157033,146.78,146.77,12.8644793]
[1751644979921,0.68157033,146.8,146.77,12.8644793]
[1751644980099,0.68157033,146.8,146.78,12.8644793]
[1751644980328,26.0,146.79,146.75,0.1]
[1751644980543,0.68157033,146.78,146.76,12.8644793]
[1751644980853,0.68157033,146.78,146.75,0.1]
[1751644980854,0.68157033,146.78,146.77,12.8644793]
[1751644981035,0.68157033,146.78,146.76,12.8644793]
[1751644981345,0.68157033,146.8,146.77,12.8644793]
[1751644981520,0.68157033,146.8,146.75,0.1]
[1751644981521,0.68157033,146.83,146.79,25.7289586]
[1751644981848,10.28768172,146.84,146.75,23.94989805]
[1751644982052,10.96925205,146.84,146.8,12.8644793]
[1751644982232,10.96925205,146.84,146.81,12.8644793]
[1751644982850,4.15907033,146.84,146.81,12.8644793]
[1751644983019,3.4775,146.84,146.83,12.8644793]
[1751644983417,3.4775,146.84,146.79,12.8644793]
[1751644983643,3.4775,146.84,146.78,18.64964886]
[1751644983819,3.4775,146.84,146.82,12.8644793]
[1751644984023,0.68157033,146.83,146.8,12.8644793]
[1751644984224,12.2138,146.8,146.75,0.1]
[1751644984436,13.54604963,146.79,146.75,12.9644793]
[1751644984753,20.35873802,146.79,146.75,0.1]
[1751644985038,20.35873802,146.79,146.75,12.9644793]
[1751644985250,3.2647,146.76,146.75,0.1]
[1751644985439,16.81074963,146.76,146.75,0.1]
[1751644985950,3.94627033,146.76,146.75,0.1]
[1751644986836,3.2647,146.76,146.75,0.1]
[1751644987040,10.76011606,146.76,146.75,0.1]
[1751644987625,23.62459536,146.76,146.75,0.1]
[1751644988830,10.76011606,146.76,146.75,0.1]
[1751644989027,23.62459536,146.76,146.75,0.1]
[1751644989442,42.27424422,146.76,146.75,0.1]
[1751644990027,18.64964886,146.75,146.74,0.1]
[1751644990231,18.64964886,146.73,146.72,0.1]
[1751644990428,32.19569849,146.73,146.72,0.1]
[1751644990824,26.14645806,146.73,146.72,0.1]
[1751644991137,39.01093736,146.73,146.72,0.1]
[1751644991745,20.3612885,146.73,146.72,0.1]
[1751644992119,39.01093736,146.73,146.72,0.1]
[1751644992448,26.14645806,146.73,146.72,0.1]
[1751644992649,18.64964886,146.72,146.68,0.1]
[1751644992830,12.8644793,146.69,146.68,0.1]
[1751644993718,26.68157033,146.69,146.68,0.1]
[1751644994145,0.68157033,146.69,146.68,0.1]
[1751644994943,7.4986676,146.69,146.68,0.1]
[1751644996243,0.68157033,146.69,146.68,0.1]
[1751644996546,0.68157033,146.7,146.68,12.9644793]
[1751644998244,20.36281711,146.7,146.68,0.1]
[1751644998454,16.1087793,146.69,146.68,0.1]
[1751644998832,10.06139727,146.69,146.68,0.1]
[1751644999238,22.92587657,146.69,146.68,0.1]
[1751644999745,10.06139727,146.69,146.68,0.1]
[1751645000122,10.7429676,146.69,146.68,0.1]
[1751645000330,23.6074469,146.69,146.68,0.1]
[1751645001052,42.25709576,146.69,146.68,0.1]
[1751645002320,23.6074469,146.69,146.68,0.1]
[1751645003138,0.68157033,146.69,146.68,0.1]
[1751645003649,7.4986676,146.69,146.68,0.1]
[1751645004150,0.68157033,146.69,146.68,0.1]
[1751645004933,0.68157033,146.69,146.68,12.9644793]
[1751645005237,7.49748277,146.72,146.68,12.9644793]
[1751645005639,7.49748277,146.72,146.69,12.8644793]
[1751645007050,7.49748277,146.72,146.68,12.9644793]
[1751645007264,37.40122052,146.72,146.68,0.1]
[1751645007428,12.8644793,146.69,146.68,0.1]
[1751645007635,13.54604963,146.69,146.68,0.1]
[1751645007847,0.68157033,146.69,146.68,0.1]
[1751645008150,13.54604963,146.69,146.65,0.1]
[1751645008349,0.68157033,146.69,146.65,0.1]
[1751645008559,12.8644793,146.68,146.65,0.1]
[1751645008738,0.68157033,146.67,146.65,0.1]
[1751645009239,6.81849174,146.66,146.65,0.1]
[1751645009759,19.68297104,146.66,146.65,0.1]
[1751645009950,6.81849174,146.66,146.65,0.1]
[1751645010449,19.68297104,146.66,146.65,0.1]
[1751645011757,0.68157033,146.7,146.65,12.9644793]
[1751645012056,4.10507033,146.73,146.69,12.8644793]
[1751645012245,7.49682809,146.73,146.71,12.8644793]
[1751645015130,0.68157033,146.73,146.72,12.8644793]
[1751645015333,9.48,146.74,146.72,12.8644793]
[1751645015533,0.68157033,146.76,146.73,12.8644793]
[1751645015836,0.68157033,146.8,146.75,12.8644793]
[1751645016058,10.16157033,146.81,146.79,12.8644793]
[1751645016230,9.48,146.81,146.8,12.8644793]
[1751645016837,6.81059728,146.83,146.8,12.8644793]
[1751645017038,6.81059728,146.83,146.82,12.8644793]
[1751645017239,6.81059728,146.83,146.74,3.2288]
[1751645017444,0.68157033,146.82,146.79,12.8644793]
[1751645017735,0.68157033,146.82,146.78,12.8644793]
[1751645017940,6.8115251,146.81,146.73,26.0]
[1751645018148,13.54604963,146.8,146.76,12.8644793]
[1751645018345,13.54604963,146.8,146.72,12.1664]
[1751645018346,0.68157033,146.8,146.77,12.8644793]
[1751645018541,0.68157033,146.8,146.72,12.1664]
[1751645018755,13.54604963,146.8,146.76,12.8644793]
[1751645019153,6.81245316,146.79,146.76,12.8644793]
[1751645019367,0.68157033,146.78,146.76,12.8644793]
[1751645019552,0.68157033,146.78,146.72,18.98209089]
[1751645019755,0.68157033,146.78,146.76,12.8644793]
[1751645019950,0.68157033,146.8,146.77,12.8644793]
[1751645020150,0.68157033,146.8,146.72,18.98209089]
[1751645020151,0.68157033,146.83,146.79,12.8644793]
[1751645020353,0.2,146.85,146.79,12.8644793]
[1751645020354,0.2,146.85,146.82,12.8644793]
[1751645020544,0.2,146.85,146.84,12.8644793]
[1751645021242,0.2,146.85,146.84,19.67461277]
[1751645021509,0.2,146.85,146.84,38.32426163]
[1751645022747,0.2,146.85,146.84,6.81013347]
[1751645022955,0.2,146.85,146.84,12.8644793]
[1751645023449,0.2,146.85,146.83,12.8644793]
[1751645023849,0.2,146.85,146.83,18.49692536]
[1751645024350,0.2,146.85,146.84,18.49692536]
[1751645026461,0.2,146.85,146.84,63.14657422]
[1751645026765,0.2,146.91,146.85,31.82654886]
[1751645026965,0.2,146.91,146.9,18.49692536]
[1751645027169,0.2,146.91,146.9,25.3042773]
[1751645027376,0.2,146.91,146.9,88.45085152]
[1751645030779,0.2,146.91,146.9,51.3042773]
[1751645030970,0.2,146.91,146.9,88.45085152]
[1751645031498,0.2,146.91,146.9,51.3042773]
[1751645031666,0.2,146.91,146.9,25.3042773]
[1751645031998,0.2,146.91,146.88,32.80821889]
[1751645032201,0.2,146.91,146.88,18.49692536]
[1751645032384,26.18538426,146.91,146.83,18.64964886]
[1751645032702,0.2,146.91,146.89,18.49692536]
[1751645032905,0.2,146.91,146.88,18.49692536]
[1751645033218,0.88157033,146.91,146.88,18.49692536]
[1751645033391,7.68846141,146.91,146.88,18.49692536]
[1751645033584,7.68846141,146.91,146.87,18.49692536]
[1751645033796,7.68846141,146.91,146.86,6.80912044]
[1751645033797,0.2,146.91,146.89,18.49692536]
[1751645034309,0.2,146.91,146.88,18.49692536]
[1751645034820,0.2,146.91,146.9,18.49692536]
[1751645035206,0.2,146.91,146.87,18.64964886]
[1751645035380,0.2,146.91,146.9,18.49692536]
[1751645035898,0.2,146.91,146.9,25.3042773]
[1751645039490,0.2,146.91,146.9,62.45085152]
[1751645040116,0.2,146.94,146.9,79.46923137]
[1751645040313,0.2,146.94,146.93,18.49692536]
[1751645040700,0.2,146.94,146.93,37.14657422]
[1751645041491,0.2,146.94,146.93,43.95253624]
[1751645041816,0.2,146.96,146.94,18.64964886]
[1751645042000,0.2,146.96,146.95,18.49692536]
[1751645042414,0.2,146.97,146.95,63.14657422]
[1751645042596,0.2,146.99,146.95,63.14657422]
[1751645042597,0.2,146.99,146.98,44.64964886]
[1751645042786,0.2,146.99,146.98,81.64349958]
[1751645043188,1e-08,146.99,146.98,81.64349958]
[1751645043599,1e-08,146.99,146.98,88.44714633]
[1751645044894,0.2,147.0,146.98,88.44714633]
[1751645045097,0.2,147.01,146.99,55.64349958]
[1751645045327,0.2,147.01,146.98,37.00876363]
[1751645045328,0.2,147.01,147.0,81.64349958]
[1751645045529,0.2,147.01,147.0,63.14657422]
[1751645045691,0.2,147.01,146.97,0.68041096]
[1751645045692,0.2,147.01,146.97,26.0]
[1751645045890,25.49928371,147.01,146.97,18.49692536]
[1751645046229,18.49692536,146.99,146.94,18.49692536]
[1751645046430,19.17849569,146.98,146.87,6.80874242]
[1751645046719,18.49692536,146.95,146.91,18.49692536]
[1751645046897,21.63492536,147.0,146.9,18.49692536]
[1751645046898,19.17849569,146.94,146.9,18.49692536]
[1751645047295,18.49692536,146.93,146.89,18.49692536]
[1751645047516,18.49692536,146.91,146.83,6.81059728]
[1751645047722,18.49692536,146.89,146.82,6.8108901]
[1751645048101,19.17849569,146.88,146.84,18.49692536]
[1751645048404,19.17849569,146.88,146.81,18.64964886]
[1751645048715,18.49692536,146.87,146.83,18.49692536]
[1751645048921,6.80920604,146.86,146.83,18.49692536]
[1751645049302,25.3061314,146.86,146.79,44.64964886]
[1751645049502,25.3061314,146.86,146.81,18.49692536]
[1751645049718,6.80920604,146.86,146.81,18.49692536]
[1751645050023,25.3061314,146.86,146.81,18.49692536]
[1751645050228,25.3061314,146.86,146.79,0.1]
[1751645050229,18.49692536,146.84,146.79,0.1]
[1751645050435,0.68157033,146.85,146.79,0.1]
[1751645050606,19.17849569,146.85,146.81,18.49692536]
[1751645051114,25.30705883,146.84,146.79,0.1]
[1751645051322,18.49692536,146.83,146.79,18.59692536]
[1751645052521,0.68157033,146.86,146.82,18.49692536]
[1751645052705,51.30625838,146.86,146.82,18.49692536]
[1751645052906,18.49692536,146.84,146.8,18.49692536]
[1751645053110,0.68157033,146.83,146.79,18.59692536]
[1751645053310,18.49692536,146.83,146.79,18.59692536]
[1751645053511,9.14,146.88,146.82,18.49692536]
[1751645053512,18.49692536,146.87,146.82,18.49692536]
[1751645053711,7.49093264,146.86,146.82,18.49692536]
[1751645053920,0.68157033,146.86,146.82,18.49692536]
[1751645054116,0.68157033,146.86,146.79,6.91229264]
[1751645054426,19.17849569,146.86,146.82,18.49692536]
[1751645054600,19.17849569,146.86,146.79,0.1]
[1751645054601,18.49692536,146.84,146.79,0.1]
[1751645054922,19.17849569,146.83,146.79,18.59692536]
[1751645055114,18.49692536,146.84,146.8,18.49692536]
[1751645055324,6.80966973,146.85,146.81,18.49692536]
[1751645055525,19.17849569,146.84,146.8,18.49692536]
[1751645055735,18.49692536,146.83,146.79,0.1]
[1751645056033,0.68157033,146.82,146.79,0.1]
[1751645056441,18.49692536,146.83,146.79,18.59692536]
[1751645057232,7.49263149,146.82,146.79,0.1]
[1751645057816,6.81106116,146.82,146.79,18.59692536]
[1751645058227,7.4922504,146.83,146.8,18.49692536]
[1751645058446,6.81068007,146.83,146.8,18.49692536]
[1751645058626,6.81068007,146.83,146.79,0.1]
[1751645058945,6.81068007,146.83,146.8,18.49692536]
[1751645059612,6.81068007,146.83,146.79,0.1]
[1751645059813,18.49692536,146.81,146.79,0.1]
[1751645060034,19.17849569,146.82,146.79,0.1]
[1751645060230,0.68157033,146.82,146.79,0.1]
[1751645060543,18.49692536,146.8,146.79,0.1]
[1751645060721,22.26629569,146.8,146.79,0.1]
[1751645060917,50.05594455,146.8,146.78,0.1]
[1751645061116,18.49692536,146.79,146.78,0.1]
[1751645061522,25.30937852,146.79,146.78,0.1]
[1751645061824,43.95902738,146.79,146.78,1e-08]
[1751645062024,18.64964886,146.78,146.71,18.49692536]
[1751645062225,18.49692536,146.75,146.71,18.49692536]
[1751645062541,18.49692536,146.74,146.7,18.49692536]
[1751645062746,19.17849569,146.74,146.68,6.8174723]
[1751645063124,19.17849569,146.74,146.7,18.49692536]
[1751645064225,6.81476183,146.75,146.72,18.49692536]
[1751645064425,7.49633216,146.75,146.72,18.49692536]
[1751645064626,7.49633216,146.75,146.71,18.49692536]
[1751645064824,25.99325752,146.75,146.71,18.49692536]
[1751645065951,18.49692536,146.73,146.69,18.49692536]
[1751645066138,18.49692536,146.74,146.7,18.49692536]
[1751645066333,0.68157033,146.73,146.7,18.49692536]
[1751645066937,0.68157033,146.73,146.65,32.91878579]
[1751645066938,18.49692536,146.72,146.65,32.91878579]
[1751645067140,18.49692536,146.72,146.68,18.49692536]
[1751645067733,6.81616795,146.71,146.65,0.1]
[1751645068050,25.99466364,146.71,146.67,18.49692536]
[1751645068249,11.9948,146.72,146.7,18.49692536]
[1751645068547,90.48157033,146.75,146.66,18.64964886]
[1751645068731,0.68157033,146.75,146.71,18.49692536]
[1751645068922,25.99287115,146.75,146.7,18.49692536]
[1751645069321,25.99287115,146.75,146.71,18.49692536]
[1751645069761,7.49594579,146.75,146.71,18.49692536]
[1751645070249,7.49594579,146.75,146.72,18.49692536]
[1751645070678,7.49594579,146.75,146.66,18.64964886]
[1751645070679,25.99287115,146.75,146.71,18.49692536]
[1751645071234,7.49594579,146.75,146.69,6.81683923]
[1751645071448,7.49594579,146.75,146.71,18.49692536]
[1751645071652,18.49692536,146.74,146.65,26.1]
[1751645071855,18.64964886,146.76,146.67,18.49692536]
[1751645071856,6.81616795,146.71,146.67,18.49692536]
[1751645072056,19.17849569,146.7,146.65,0.1]
[1751645072252,19.17849569,146.7,146.65,18.59692536]
[1751645072449,18.49692536,146.67,146.65,0.1]
[1751645072658,0.68157033,146.66,146.65,0.1]
[1751645072853,19.17849569,146.66,146.65,0.1]
[1751645073257,11.4337,146.68,146.65,0.1]
[1751645073456,0.68157033,146.67,146.65,0.1]
[1751645073933,7.49961229,146.67,146.65,0.1]
[1751645074331,6.81804196,146.67,146.65,0.1]
[1751645074558,0.68157033,146.7,146.66,18.49692536]
[1751645074754,7.49820627,146.7,146.68,18.49692536]
[1751645074945,7.49820627,146.7,146.67,18.49692536]
[1751645075143,0.68157033,146.7,146.67,18.49692536]
[1751645075345,28.93747673,146.71,146.67,18.49692536]
[1751645075561,28.93747673,146.71,146.65,6.9189404]
[1751645075759,28.93747673,146.71,146.67,18.49692536]
[1751645076062,10.44055137,146.71,146.67,18.49692536]
[1751645076447,28.93747673,146.71,146.67,18.49692536]
[1751645076845,28.93747673,146.71,146.65,6.91877759]
[1751645077144,10.44055137,146.71,146.68,18.49692536]
[1751645077464,3.62407033,146.71,146.68,18.49692536]
[1751645077762,2.9425,146.71,146.69,18.49692536]
[1751645077965,3.0031,146.75,146.7,18.49692536]
[1751645078267,0.68157033,146.74,146.71,18.49692536]
[1751645078459,0.68157033,146.74,146.7,18.49692536]
[1751645078460,7.49635512,146.74,146.7,18.49692536]
[1751645078839,18.49692536,146.73,146.68,18.49692536]
[1751645079044,19.17849569,146.72,146.68,18.49692536]
[1751645079253,18.49692536,146.71,146.66,18.49692536]
[1751645079448,0.68157033,146.7,146.66,18.49692536]
[1751645080175,7.49843594,146.7,146.65,0.1]
[1751645080339,7.49843594,146.7,146.66,18.49692536]
[1751645080662,7.49843594,146.7,146.65,0.1]
[1751645081034,7.49843594,146.7,146.67,18.49692536]
[1751645081238,7.49843594,146.7,146.65,0.1]
[1751645081490,18.49692536,146.67,146.65,0.1]
[1751645081759,24.54001739,146.7,146.65,0.1]
[1751645081760,22.19309569,146.66,146.65,0.1]
[1751645082151,3.69617033,146.66,146.65,0.1]
[1751645082456,29.01158743,146.66,146.65,0.1]
[1751645082672,3.0146,146.66,146.65,0.1]
[1751645082876,9.83309174,146.66,146.65,0.1]
[1751645083047,3.0146,146.66,146.65,0.1]
[1751645083455,0.68157033,146.67,146.65,0.1]
[1751645083859,7.49963403,146.67,146.65,0.1]
[1751645084555,18.49692536,146.66,146.65,0.1]
[1751645084765,2.8515,146.65,146.62,0.1]
[1751645084966,37.14657422,146.63,146.62,0.1]
[1751645085149,18.64964886,146.61,146.59,0.1]
[1751645085348,37.82814455,146.6,146.59,0.1]
[1751645085558,19.33121919,146.6,146.59,0.1]
[1751645085864,0.68157033,146.6,146.59,0.1]
[1751645086048,20.92097033,146.62,146.59,0.1]
[1751645086250,39.41789569,146.62,146.59,0.1]
[1751645086449,12.02097033,146.62,146.59,18.59692536]
[1751645086650,11.3425,146.66,146.61,18.49692536]
[1751645086853,11.3425,146.66,146.59,23.97604702]
[1751645086854,6.81756203,146.68,146.64,18.49692536]
[1751645087050,25.99605772,146.68,146.64,18.49692536]
[1751645087250,0.68157033,146.68,146.65,18.49692536]
[1751645087675,0.68157033,146.68,146.66,18.49692536]
[1751645087974,40.15020064,146.7,146.66,18.49692536]
[1751645088272,21.65327528,146.7,146.66,18.49692536]
[1751645089762,21.65327528,146.7,146.67,18.49692536]
[1751645089763,20.97170495,146.7,146.67,18.49692536]
[1751645090089,8.9,146.71,146.68,18.49692536]
[1751645090243,8.9,146.71,146.69,18.49692536]
[1751645090244,15.71622986,146.71,146.69,18.49692536]
[1751645090449,15.71622986,146.71,146.68,18.49692536]
[1751645091673,8.9,146.71,146.68,18.49692536]
[1751645092269,8.9,146.71,146.69,18.49692536]
[1751645092653,32.75670449,146.71,146.62,6.8203032]
[1751645092867,18.49692536,146.69,146.62,6.8203032]
[1751645093067,18.49692536,146.69,146.65,18.49692536]
[1751645093267,0.68157033,146.68,146.65,18.49692536]
[1751645093664,25.31448739,146.68,146.64,18.49692536]
[1751645093874,0.68157033,146.67,146.64,18.49692536]
[1751645094776,19.17849569,146.67,146.63,18.49692536]
[1751645095746,0.68157033,146.67,146.64,18.49692536]
[1751645096471,19.17849569,146.69,146.64,18.49692536]
[1751645096850,18.49692536,146.68,146.6,6.8212824]
[1751645097053,19.17849569,146.67,146.63,18.49692536]
[1751645097266,0.68157033,146.67,146.63,18.49692536]
[1751645097852,6.81849174,146.66,146.63,18.49692536]
[1751645098070,6.81849174,146.66,146.6,6.8212824]
[1751645098273,6.81849174,146.66,146.63,18.49692536]
[1751645098777,7.49976667,146.67,146.63,18.49692536]
[1751645099190,7.49976667,146.67,146.6,6.8212824]
[1751645099357,12.9109,146.66,146.59,18.59692536]
[1751645099696,12.9109,146.66,146.6,18.49692536]
[1751645099697,0.68157033,146.65,146.6,18.49692536]
[1751645099986,6.81942171,146.64,146.6,18.49692536]
[1751645100165,7.50066453,146.65,146.62,18.49692536]
[1751645100368,12.9109,146.66,146.59,6.92162218]
[1751645100568,12.9109,146.66,146.64,18.49692536]
[1751645100787,19.72955283,146.66,146.63,18.49692536]
[1751645101159,0.68157033,146.65,146.62,18.49692536]
[1751645101469,19.72955283,146.66,146.62,18.49692536]
[1751645101856,20.41112316,146.66,146.63,18.49692536]
[1751645102976,12.9109,146.66,146.63,18.49692536]
[1751645103360,13.64497033,146.7,146.65,18.49692536]
[1751645103559,5.01597794,146.69,146.66,18.49692536]
[1751645104115,5.01597794,146.69,146.68,18.49692536]
[1751645104264,12.9634,146.7,146.68,18.49692536]
[1751645104265,5.01597794,146.7,146.68,18.49692536]
[1751645104461,8.9,146.71,146.68,18.49692536]
[1751645104681,27.39692536,146.71,146.67,18.49692536]
[1751645104867,5.01597794,146.7,146.67,18.49692536]